bitfinex/quotes_ETHUSD_20250425
["timestamp","ask_amount","ask_price","bid_price","bid_amount"]
[1745565624207,3.8311,1777.1,1776.4,0.8275]
[1745565624406,0.76068876,1776.7,1776.4,4.766]
[1745565624617,0.8311,1776.6,1776.4,4.766]
[1745565625046,0.76068876,1776.5,1776.4,4.766]
[1745565625723,0.76068876,1776.5,1776.3,16.892]
[1745565626410,0.8109,1776.4,1776.2,4.766]
[1745565626624,0.76068876,1776.3,1776.2,4.766]
[1745565627029,3.76068876,1776.3,1776.2,4.766]
[1745565628355,0.31488966,1776.3,1776.2,4.766]
[1745565629344,6.42121736,1776.4,1776.2,4.766]
[1745565629887,6.0,1776.4,1776.2,5.31808]
[1745565631056,0.8109,1776.6,1776.2,5.31808]
[1745565631472,0.76068876,1776.7,1776.2,5.31808]
[1745565632345,0.7578,1776.8,1776.2,5.31808]
[1745565632897,0.7578,1776.8,1776.3,0.8]
[1745565633097,1.17986182,1776.8,1776.3,0.8]
[1745565633679,0.02096898,1776.5,1776.3,0.8]
[1745565635197,0.02096898,1776.5,1776.2,4.766]
[1745565635359,1.58835774,1776.5,1776.2,4.766]
[1745565636072,0.82766898,1776.5,1776.2,4.766]
[1745565636273,0.82766898,1776.5,1776.3,0.4766]
[1745565636274,0.02096898,1776.5,1776.3,0.4766]
[1745565637166,0.02096898,1776.5,1776.2,4.766]
[1745565638407,0.76068876,1776.3,1776.1,4.767]
[1745565638777,6.7923,1776.4,1776.1,4.767]
[1745565639408,6.0,1776.4,1776.1,4.767]
[1745565642911,0.78165774,1776.5,1776.1,4.767]
[1745565643418,1.09557651,1776.5,1776.1,4.767]
[1745565643812,1.87227651,1776.5,1776.1,4.767]
[1745565644001,1.09557651,1776.5,1776.1,4.767]
[1745565644228,0.8245,1776.4,1776.1,4.767]
[1745565645481,1.09557651,1776.5,1776.1,5.5685]
[1745565645683,0.33488775,1776.5,1776.1,5.5685]
[1745565645909,0.33488775,1776.5,1776.2,0.55685]
[1745565646614,0.02096898,1776.5,1776.2,0.55685]
[1745565646914,0.02096898,1776.5,1776.1,5.5685]
[1745565648026,0.33574558,1776.5,1776.1,5.5685]
[1745565648880,0.3281369,1776.5,1776.1,5.5685]
[1745565653026,0.3281369,1776.5,1776.1,0.8115]
[1745565653187,1.08882566,1776.5,1776.2,4.768]
[1745565653497,0.8293,1776.4,1776.1,4.768]
[1745565653910,0.76068876,1776.3,1776.1,4.768]
[1745565654113,0.3147766,1776.2,1776.1,4.768]
[1745565663043,0.3147766,1776.2,1776.1,5.5739]
[1745565665652,0.3147766,1776.2,1775.7,3.31236913]
[1745565665653,1.1460766,1776.2,1775.7,2.55168037]
[1745565665861,1.1460766,1776.2,1775.9,4.768]
[1745565666213,7.1460766,1776.2,1775.9,4.768]
[1745565666413,7.1460766,1776.2,1775.6,17.7058]
[1745565666414,0.758,1776.0,1775.6,16.885]
[1745565666787,0.758,1776.0,1775.7,4.768]
[1745565667510,0.758,1776.0,1775.6,16.885]
[1745565667511,4.07546536,1775.9,1775.6,16.885]
[1745565667714,4.07546536,1775.9,1775.5,4.768]
[1745565667917,10.07546536,1775.9,1775.5,4.768]
[1745565668153,0.788,1775.8,1775.5,4.768]
[1745565668715,0.3147766,1775.7,1775.5,4.768]
[1745565670665,1.1027766,1775.8,1775.5,4.768]
[1745565672059,1.52689442,1775.8,1775.5,4.768]
[1745565674241,0.73889442,1775.8,1775.5,4.768]
[1745565675371,0.814,1775.7,1775.1,0.7981]
[1745565675671,0.814,1775.7,1775.2,4.769]
[1745565676076,0.7991,1775.5,1774.9,17.6817]
[1745565676369,0.76068876,1775.3,1775.0,4.769]
[1745565676685,3.76068876,1775.3,1775.0,4.769]
[1745565677234,3.0,1775.3,1775.0,4.769]
[1745565677485,4.07546536,1775.3,1775.0,4.769]
[1745565677779,0.7991,1775.2,1775.0,4.769]
[1745565680671,5.29317441,1775.3,1775.0,4.769]
[1745565680965,11.29317441,1775.3,1775.0,4.769]
[1745565681289,10.97839781,1775.3,1775.0,4.769]
[1745565681642,9.0,1775.3,1775.0,7.7127]
[1745565681854,6.0,1775.3,1775.0,7.7127]
[1745565682283,6.0,1775.3,1775.1,0.7775]
[1745565683676,0.7543,1775.7,1775.1,0.7775]
[1745565683977,6.0,1775.7,1775.1,0.7775]
[1745565684188,2.01500658,1775.8,1775.1,0.7775]
[1745565684189,0.42411782,1775.8,1775.2,0.7929]
[1745565684343,6.0,1775.9,1775.2,0.7929]
[1745565684542,6.0,1775.9,1775.2,5.63316177]
[1745565684790,6.0,1775.9,1775.4,0.7881]
[1745565684967,0.8302,1776.0,1775.5,4.77]
[1745565686691,2.00500255,1776.0,1775.5,4.77]
[1745565686899,0.76068876,1775.8,1775.5,4.77]
[1745565689921,6.76068876,1775.8,1775.5,4.77]
[1745565690888,0.76068876,1775.6,1775.5,4.77]
[1745565691806,0.76068876,1775.6,1775.2,5.5721]
[1745565691985,1.57208876,1775.4,1775.2,4.77]
[1745565692680,1.88612469,1775.4,1775.2,4.77]
[1745565693283,4.88612469,1775.4,1775.2,4.77]
[1745565694216,5.30826312,1775.4,1775.2,4.77]
[1745565695424,11.30826312,1775.4,1775.0,4.77]
[1745565695611,0.76068876,1775.2,1775.0,4.77]
[1745565695812,0.8278,1775.1,1774.5,0.8313]
[1745565696122,6.8278,1775.1,1774.6,4.77]
[1745565696423,6.8278,1775.1,1774.6,5.33013]
[1745565696424,4.07472469,1775.0,1774.6,5.33013]
[1745565698059,4.07472469,1775.0,1774.6,4.77]
[1745565700881,3.31403593,1775.0,1774.6,4.77]
[1745565701932,0.31403593,1775.0,1774.6,4.77]
[1745565702086,0.31403593,1775.0,1774.7,0.7722]
[1745565702926,6.0,1775.1,1774.7,0.7722]
[1745565703130,6.0,1775.1,1774.7,1.32642]
[1745565703685,3.0,1775.2,1774.7,1.32642]
[1745565704435,3.31414789,1775.2,1774.7,1.32642]
[1745565704639,3.31414789,1775.2,1774.8,0.8079]
[1745565704640,0.31414789,1775.2,1774.8,0.8079]
[1745565705341,1.12554789,1775.2,1774.8,0.8079]
[1745565705701,0.76068876,1775.1,1774.6,5.5889]
[1745565705902,0.76068876,1775.1,1774.7,4.771]
[1745565707322,6.76068876,1775.1,1774.7,4.771]
[1745565708391,0.31414789,1775.0,1774.7,4.771]
[1745565709998,6.0,1775.1,1774.7,4.771]
[1745565711729,0.31403331,1775.0,1774.7,4.771]
[1745565712692,6.0,1775.1,1774.7,4.771]
[1745565713227,9.8114,1775.2,1774.7,4.771]
[1745565713728,0.31402691,1775.1,1774.7,4.771]
[1745565714304,9.8114,1775.2,1774.7,4.771]
[1745565714516,9.8114,1775.2,1774.7,5.32999]
[1745565715032,9.8114,1775.2,1774.7,4.771]
[1745565716430,0.31445338,1775.1,1774.7,4.771]
[1745565717405,0.31445338,1775.1,1774.8,0.7763]
[1745565718712,6.0,1775.2,1774.8,0.7763]
[1745565719102,10.93407008,1775.4,1774.8,0.7763]
[1745565719301,3.0,1775.3,1774.8,0.7763]
[1745565719506,0.31477889,1775.2,1774.8,0.7763]
[1745565721136,0.7941,1775.1,1774.7,4.771]
[1745565721346,1.10887889,1775.1,1774.7,4.771]
[1745565722148,0.31477889,1775.1,1774.7,4.771]
[1745565722325,0.31477889,1775.0,1774.8,1.2718]
[1745565722937,0.31477889,1775.2,1774.8,1.2718]
[1745565723850,0.31477889,1775.1,1774.8,1.2718]
[1745565724381,0.31477889,1775.2,1774.8,1.2718]
[1745565726225,0.31477889,1775.1,1774.8,1.2718]
[1745565727462,1.89436765,1775.2,1774.8,0.7947]
[1745565728119,0.31477889,1775.1,1774.8,0.7947]
[1745565728843,0.31477889,1775.0,1774.8,0.7947]
[1745565729960,0.31477889,1775.1,1774.8,0.7947]
[1745565730554,0.31477889,1775.1,1774.8,1.35127]
[1745565730760,0.31477889,1775.0,1774.8,1.35127]
[1745565731058,0.31477889,1775.0,1774.9,4.771]
[1745565731354,0.31477889,1775.1,1774.9,4.771]
[1745565732522,0.31477889,1775.0,1774.9,4.771]
[1745565733422,0.31477889,1775.1,1774.9,4.771]
[1745565734259,0.31477889,1775.0,1774.9,4.771]
[1745565735147,0.31477889,1775.1,1774.9,4.771]
[1745565735933,0.31477889,1775.0,1774.9,4.771]
[1745565736644,0.31477889,1775.1,1774.9,4.771]
[1745565737541,0.31477889,1775.0,1774.9,4.771]
[1745565742979,0.786,1774.9,1774.6,4.771]
[1745565743374,0.76068876,1774.8,1774.6,4.771]
[1745565743746,0.31477889,1774.7,1774.6,4.771]
[1745565744048,0.31477889,1774.7,1774.6,0.93726]
[1745565744437,6.76068876,1774.8,1774.6,0.93726]
[1745565744660,0.31451187,1774.7,1774.6,0.93726]
[1745565744864,1.07181187,1774.7,1774.3,21.675]
[1745565745072,0.76068876,1774.5,1774.3,21.675]
[1745565745488,0.76068876,1774.5,1774.3,21.80140086]
[1745565745888,1.07520063,1774.5,1774.3,21.80140086]
[1745565746597,1.07520063,1774.5,1774.3,4.89740086]
[1745565746749,0.7821,1774.4,1774.3,4.89740086]
[1745565747585,1.09661187,1774.4,1774.3,4.89740086]
[1745565747748,1.09661187,1774.4,1774.3,4.771]
[1745565748085,1.09661187,1774.4,1774.3,4.89813419]
[1745565748592,0.31451187,1774.4,1774.3,4.89813419]
[1745565748882,6.0,1774.5,1774.3,4.89813419]
[1745565750161,6.0,1774.5,1774.3,5.65443419]
[1745565751275,9.0,1774.6,1774.3,4.89813419]
[1745565751655,0.31374069,1774.5,1774.3,4.89813419]
[1745565752402,9.0,1774.6,1774.3,4.89813419]
[1745565752978,0.76068876,1774.5,1774.3,4.89813419]
[1745565754275,1.07433837,1774.5,1774.3,4.89813419]
[1745565754494,0.7902,1774.4,1774.3,4.89813419]
[1745565755089,0.7902,1774.4,1774.3,0.12713419]
[1745565755386,0.7902,1774.4,1774.0,4.772]
[1745565755553,0.7902,1774.4,1774.3,0.12774342]
[1745565755754,0.31364961,1774.5,1774.1,0.7553]
[1745565756060,0.31364961,1774.5,1774.2,0.1318742]
[1745565758687,9.0,1774.6,1774.2,0.1318742]
[1745565762066,0.31399954,1774.5,1774.2,0.1318742]
[1745565763099,0.31399954,1774.5,1774.2,4.9038742]
[1745565763405,0.8145,1774.4,1774.2,0.1318742]
[1745565763564,0.76068876,1774.3,1773.9,0.9081175]
[1745565763771,6.0,1774.3,1774.0,0.8165]
[1745565764677,6.0,1774.3,1774.2,0.8108]
[1745565764886,6.0,1774.3,1774.2,1.36908]
[1745565766099,0.7723,1774.8,1774.3,0.814]
[1745565766707,1.08664018,1774.8,1774.3,0.814]
[1745565766872,0.31434018,1774.8,1774.3,5.63593181]
[1745565767072,0.31434018,1774.8,1774.5,0.7606]
[1745565767377,0.31434018,1774.8,1774.6,4.772]
[1745565767902,6.0,1774.9,1774.6,4.772]
[1745565768206,0.7701,1774.8,1774.4,0.56359318]
[1745565768419,0.76068876,1774.7,1774.3,5.5472]
[1745565768588,3.7701,1774.8,1774.3,5.5472]
[1745565769805,4.08462493,1774.8,1774.3,5.5472]
[1745565771398,0.31452493,1774.7,1774.3,5.5472]
[1745565771632,0.31452493,1774.7,1774.3,6.10192]
[1745565773847,1.08462493,1774.8,1774.3,6.10192]
[1745565774002,1.08462493,1774.8,1774.3,5.5472]
[1745565775424,0.31452493,1774.7,1774.3,5.5472]
[1745565775626,1.07521369,1774.7,1774.3,5.5472]
[1745565775827,0.76068876,1774.5,1774.3,4.772]
[1745565776032,0.8285,1774.4,1773.9,1.7039175]
[1745565776219,0.8285,1774.4,1774.1,4.772]
[1745565776220,1.14302493,1774.4,1774.1,4.772]
[1745565776895,0.31452493,1774.3,1774.1,4.772]
[1745565777316,0.31452493,1774.3,1773.9,5.6801175]
[1745565778137,0.31452493,1774.3,1774.0,0.83]
[1745565778509,1.07521369,1774.5,1774.0,0.83]
[1745565778869,0.31452493,1774.5,1774.0,0.83]
[1745565779001,0.31452493,1774.5,1774.1,4.772]
[1745565779202,0.31452493,1774.5,1774.1,5.3322]
[1745565779926,0.31452493,1774.5,1774.2,0.7688]
[1745565780403,0.31452493,1774.5,1774.1,5.3322]
[1745565780599,0.31452493,1774.6,1774.1,5.3322]
[1745565781938,0.31452493,1774.5,1774.1,5.3322]
[1745565782617,0.31452493,1774.5,1774.2,0.53322]
[1745565782815,0.31452493,1774.6,1774.2,0.53322]
[1745565783139,0.31452493,1774.6,1774.1,4.772]
[1745565783140,0.7506,1774.5,1774.1,4.772]
[1745565783635,6.7506,1774.5,1774.1,4.772]
[1745565783850,7.06512493,1774.5,1774.1,4.772]
[1745565784618,0.31452493,1774.4,1774.1,4.772]
[1745565786539,7.53568876,1774.3,1773.9,5.1801175]
[1745565787441,0.31452493,1774.2,1773.9,5.1801175]
[1745565787643,0.31452493,1774.2,1773.9,5.9961175]
[1745565788408,0.775,1774.3,1773.9,5.9961175]
[1745565788605,1.07722493,1774.4,1774.0,0.59961175]
[1745565788809,1.07722493,1774.4,1773.9,5.1801175]
[1745565789247,1.07722493,1774.4,1773.9,5.9961175]
[1745565790118,0.31452493,1774.4,1774.0,0.816]
[1745565790644,0.7627,1774.8,1774.2,0.816]
[1745565790846,0.7627,1774.8,1774.3,10.40789053]
[1745565791156,0.7627,1774.8,1774.5,0.816]
[1745565792520,0.7627,1774.8,1774.4,1.04078905]
[1745565792727,1.07746295,1774.8,1774.3,5.541]
[1745565793246,0.76068876,1774.7,1774.3,4.772]
[1745565793442,0.7583,1774.6,1774.3,4.772]
[1745565794817,0.76068876,1774.5,1773.9,0.4081175]
[1745565795173,0.7755,1774.4,1774.0,4.772]
[1745565795519,1.09026295,1774.4,1774.0,4.772]
[1745565797214,1.09026295,1774.4,1774.0,5.29001175]
[1745565797413,6.7749,1774.5,1774.1,0.7575]
[1745565799475,0.31499069,1774.4,1774.1,0.7575]
[1745565800062,0.31499069,1774.4,1774.2,4.772]
[1745565802654,0.7561,1774.7,1774.2,4.772]
[1745565802975,0.7561,1774.7,1774.2,5.88860321]
[1745565803376,1.51678876,1774.7,1774.2,5.88860321]
[1745565803588,1.51678876,1774.7,1774.2,4.772]
[1745565804080,0.31499069,1774.6,1774.2,4.772]
[1745565805489,0.31499069,1774.6,1774.0,0.51801175]
[1745565805490,1.53698876,1774.5,1774.0,0.51801175]
[1745565805644,1.53698876,1774.5,1774.2,4.804]
[1745565806303,0.31499069,1774.4,1774.2,4.804]
[1745565806479,0.7706,1774.3,1774.2,4.804]
[1745565809141,0.8134,1774.2,1773.9,0.4081175]
[1745565809313,0.8134,1774.2,1773.9,5.2121175]
[1745565809806,1.12839069,1774.2,1773.9,5.2121175]
[1745565810809,1.55788876,1774.1,1773.9,0.4081175]
[1745565811218,1.87287945,1774.1,1773.9,0.4081175]
[1745565812916,7.87287945,1774.1,1773.9,0.4081175]
[1745565813439,0.31499069,1774.0,1773.9,0.4081175]
[1745565816213,1.07567945,1774.0,1773.9,0.4081175]
[1745565817268,7.89447945,1774.0,1773.9,0.4081175]
[1745565817415,10.89447945,1774.0,1773.9,0.4081175]
[1745565819519,11.32337704,1774.0,1773.9,0.4081175]
[1745565821418,10.89447945,1774.0,1773.9,0.4081175]
[1745565823140,9.31499069,1774.0,1773.9,0.4081175]
[1745565823308,0.31499069,1774.0,1773.9,0.4081175]
[1745565823639,0.31499069,1774.0,1773.9,1.01017925]
[1745565824225,4.87547945,1774.4,1773.9,1.01017925]
[1745565824533,10.87547945,1774.4,1773.9,0.4081175]
[1745565824937,0.31499069,1774.3,1773.9,0.4081175]
[1745565825930,0.76068876,1774.2,1773.9,0.4081175]
[1745565832231,0.7942,1774.1,1773.9,0.4081175]
[1745565832943,1.51858876,1774.2,1773.9,0.4081175]
[1745565833241,1.83357945,1774.2,1773.9,0.4081175]
[1745565833454,6.0,1774.1,1773.9,0.4081175]
[1745565833916,0.31499069,1774.0,1773.9,0.4081175]
[1745565840451,0.31499069,1774.0,1773.9,1.01017925]
[1745565840627,0.31499069,1774.0,1773.9,1.84137925]
[1745565840941,6.0,1774.1,1773.9,1.84137925]
[1745565841168,6.0,1774.1,1773.9,1.2393175]
[1745565843164,0.31493488,1774.0,1773.9,1.2393175]
[1745565844067,0.31493488,1774.0,1773.9,0.4081175]
[1745565845770,0.7753,1773.9,1773.4,0.7664]
[1745565845935,1.53598876,1773.9,1773.4,7.34144]
[1745565846123,0.31493488,1773.8,1773.4,7.34144]
[1745565846755,1.85092364,1773.9,1773.4,7.34144]
[1745565847567,0.31493488,1773.9,1773.5,0.8178]
[1745565847864,0.31493488,1773.9,1773.5,1.557084]
[1745565848040,1.07562364,1773.9,1773.5,1.557084]
[1745565848731,0.31493488,1773.8,1773.5,1.557084]
[1745565850164,1.12413488,1773.8,1773.4,7.40234]
[1745565850554,0.31493488,1773.7,1773.4,7.40234]
[1745565851534,1.12413488,1773.8,1773.4,7.40234]
[1745565853839,1.12413488,1773.8,1773.4,5.6343]
[1745565854163,1.12413488,1773.8,1773.4,4.807]
[1745565854164,0.76068876,1773.7,1773.4,4.807]
[1745565855175,1.07562364,1773.7,1773.4,4.807]
[1745565856338,0.76068876,1773.5,1773.4,4.807]
[1745565856538,1.59158876,1773.5,1773.1,4.808]
[1745565857241,1.90652364,1773.5,1773.1,4.808]
[1745565858176,2.68322364,1773.5,1773.1,4.808]
[1745565858485,1.58858876,1773.3,1773.1,4.808]
[1745565858858,3.31493488,1773.5,1773.1,5.6403]
[1745565859243,0.76068876,1773.2,1772.7,4.808]
[1745565859444,1.57668876,1773.4,1772.8,0.7955]
[1745565859665,1.57668876,1773.4,1772.8,1.35585]
[1745565860651,0.8044,1773.3,1772.9,0.8227]
[1745565862144,6.8044,1773.3,1772.8,4.808]
[1745565862338,6.0,1773.3,1772.9,0.8186]
[1745565862575,6.0,1773.3,1772.9,1.38126]
[1745565863681,7.19364452,1774.0,1773.3,0.8237]
[1745565863870,0.8253,1773.9,1773.3,5.6327]
[1745565864066,0.8253,1773.9,1773.3,4.809]
[1745565864267,0.7854,1773.7,1773.3,4.809]
[1745565866787,0.7766,1773.5,1773.3,4.809]
[1745565866967,6.7766,1773.5,1773.3,4.809]
[1745565870503,6.7766,1773.5,1772.9,0.7951]
[1745565870504,6.7766,1773.5,1773.0,4.83]
[1745565870806,0.8273,1773.3,1773.0,4.83]
[1745565871899,0.76068876,1773.2,1773.0,4.83]
[1745565872264,0.8273,1773.1,1772.7,5.6339]
[1745565873501,1.14142279,1773.1,1772.7,5.6339]
[1745565874725,0.76068876,1772.9,1772.4,0.7811]
[1745565875012,0.7891,1773.0,1772.4,5.6121]
[1745565876610,0.76068876,1772.9,1772.4,5.6121]
[1745565877185,0.8163,1772.8,1772.4,5.6121]
[1745565879694,0.8163,1772.8,1772.4,4.831]
[1745565880008,0.7553,1772.6,1772.4,4.831]
[1745565881194,0.7553,1772.7,1772.4,4.831]
[1745565881836,0.7553,1772.7,1772.4,5.6489]
[1745565882137,0.7553,1772.7,1772.4,4.831]
[1745565885223,0.8308,1772.6,1772.2,17.3241175]
[1745565885520,1.59148876,1772.5,1772.2,0.4081175]
[1745565887186,0.8308,1772.5,1772.2,0.4081175]
[1745565887421,1.54138876,1772.3,1772.2,0.4081175]
[1745565888228,4.54138876,1772.3,1772.2,0.4081175]
[1745565888428,0.8322,1771.8,1771.4,4.832]
[1745565889028,0.76068876,1771.9,1771.5,0.1303211]
[1745565889226,1.55018876,1771.9,1771.5,0.1303211]
[1745565889407,1.55018876,1771.9,1771.3,0.7554]
[1745565889613,1.55018876,1771.9,1771.6,0.10909521]
[1745565889808,1.55018876,1771.9,1771.3,5.5884]
[1745565890004,1.8319749,1772.1,1771.7,0.13042926]
[1745565890204,0.76068876,1771.9,1771.3,5.5972]
[1745565890400,0.76068876,1771.9,1771.8,0.12971322]
[1745565890605,0.76068876,1771.9,1771.3,6.15692]
[1745565890791,0.76068876,1771.9,1771.8,0.10809435]
[1745565890986,0.8167,1771.8,1771.3,5.5972]
[1745565891227,0.8167,1771.8,1771.3,6.15692]
[1745565891398,0.76068876,1771.9,1771.3,6.15692]
[1745565891729,0.8167,1772.0,1771.3,11.80236581]
[1745565891894,0.8167,1772.0,1771.3,6.15692]
[1745565892225,0.8167,1772.0,1771.3,5.39272]
[1745565892534,0.7891,1772.2,1771.5,0.7817]
[1745565892828,0.76068876,1772.1,1771.6,4.834]
[1745565893414,0.76068876,1771.9,1771.4,4.834]
[1745565893920,0.7934,1771.8,1771.4,4.834]
[1745565895112,0.7934,1771.8,1771.4,5.452582]
[1745565895397,0.7934,1772.0,1771.5,0.7576]
[1745565895841,0.76068876,1772.2,1771.4,11.097676]
[1745565895842,1.51938876,1772.2,1771.4,11.097676]
[1745565896000,1.51938876,1772.2,1771.5,0.796]
[1745565898197,0.76068876,1772.0,1771.6,4.923]
[1745565899917,0.819,1771.9,1771.6,4.923]
[1745565901807,0.76068876,1771.8,1771.6,4.923]
[1745565902546,0.782,1771.7,1771.3,4.924]
[1745565902845,0.782,1771.7,1771.3,5.4164]
[1745565903131,0.782,1771.7,1771.3,4.924]
[1745565903132,0.76068876,1771.6,1771.3,4.924]
[1745565903823,0.782,1771.7,1771.3,4.924]
[1745565904150,0.782,1771.7,1771.4,0.8037]
[1745565904517,0.76068876,1771.9,1771.4,0.8037]
[1745565904719,0.832,1771.9,1771.4,1.37647]
[1745565905541,1.0740749,1772.1,1771.4,0.57277]
[1745565905542,1.14538614,1772.1,1771.4,0.57277]
[1745565905748,0.832,1772.3,1771.7,5.64415923]
[1745565906009,0.76068876,1772.2,1771.8,6.31501592]
[1745565906252,0.76068876,1772.2,1771.9,4.924]
[1745565908444,0.7917,1772.1,1771.9,4.924]
[1745565908754,0.7982,1771.9,1771.6,4.924]
[1745565908954,0.76068876,1771.8,1771.6,4.924]
[1745565913352,0.8205,1771.7,1771.6,4.924]
[1745565915144,0.8205,1771.7,1771.3,4.924]
[1745565917785,0.76068876,1771.6,1771.3,4.924]
[1745565918353,0.76068876,1771.6,1771.2,4.925]
[1745565919005,0.7782,1771.5,1771.2,4.925]
[1745565921215,0.7782,1771.5,1770.7,0.7763]
[1745565921216,0.76068876,1771.4,1770.7,0.7763]
[1745565921361,0.76068876,1771.4,1770.4,0.83470653]
[1745565921362,0.76068876,1771.1,1770.8,4.925]
[1745565921562,1.59318876,1771.1,1770.7,4.925]
[1745565922379,0.7904,1771.0,1770.7,4.925]
[1745565924287,1.56618876,1771.2,1770.7,4.925]
[1745565924473,0.8055,1771.2,1770.7,5.6824]
[1745565924671,0.8055,1771.2,1770.7,6.81540283]
[1745565925294,0.76068876,1771.4,1770.7,6.81869159]
[1745565925295,0.8055,1771.4,1770.7,6.81869159]
[1745565925499,1.56618876,1771.6,1771.0,5.64629732]
[1745565925675,1.56618876,1771.6,1771.1,6.24802973]
[1745565928400,1.56618876,1771.6,1771.1,5.49062973]
[1745565936625,1.56618876,1771.6,1771.2,0.8134]
[1745565936626,0.8055,1771.6,1771.2,0.8134]
[1745565936807,0.8055,1771.6,1771.2,6.45916937]
[1745565937012,0.8055,1771.6,1771.3,0.64591694]
[1745565937319,0.31338614,1771.9,1771.7,5.64420036]
[1745565937489,0.31338614,1771.9,1771.8,5.64397787]
[1745565937689,0.31338614,1771.9,1771.8,6.44557787]
[1745565937934,0.8098,1772.4,1771.8,0.8016]
[1745565938095,0.8098,1772.4,1771.8,6.44544004]
[1745565938303,0.8098,1772.4,1771.8,0.8016]
[1745565938484,0.8098,1772.4,1771.8,6.44555615]
[1745565938816,0.31338614,1772.6,1771.5,16.938]
[1745565938817,0.7524,1772.2,1771.5,16.938]
[1745565939034,0.7524,1772.0,1771.6,4.941]
[1745565939390,0.7524,1772.0,1771.7,4.941]
[1745565939581,0.7524,1772.0,1771.5,18.9318]
[1745565939810,0.7524,1772.0,1771.6,4.941]
[1745565939995,0.7524,1772.0,1771.6,7.32828]
[1745565941420,0.7524,1772.0,1771.6,4.941]
[1745565941629,0.8258,1771.8,1771.6,4.941]
[1745565941794,0.8258,1771.8,1771.6,4.94]
[1745565944421,0.7957,1772.0,1771.6,4.94]
[1745565944625,0.7957,1772.0,1771.6,7.9356]
[1745565945811,0.8004,1772.2,1771.6,13.58011026]
[1745565945992,0.8004,1772.2,1771.7,5.64411887]
[1745565946195,1.11378614,1772.4,1771.9,0.768]
[1745565946790,0.8004,1772.4,1771.9,0.768]
[1745565947440,0.8004,1772.4,1772.0,4.94]
[1745565949159,0.76068876,1772.6,1772.0,4.94]
[1745565949457,0.31338614,1772.7,1772.1,0.494]
[1745565949666,0.7981,1772.6,1772.2,0.7778]
[1745565950469,0.798,1772.7,1772.2,6.42050256]
[1745565951335,0.798,1772.7,1772.2,6.42027895]
[1745565951524,1.57618876,1772.8,1772.3,0.6420279]
[1745565951725,1.57618876,1772.8,1772.4,4.939]
[1745565952351,0.8155,1772.8,1772.4,4.939]
[1745565952757,1.58848876,1772.9,1772.5,0.7696]
[1745565952964,0.8278,1773.0,1772.5,0.7696]
[1745565953465,0.8278,1773.0,1772.5,1.90464209]
[1745565954769,1.8834749,1773.3,1772.6,6.45004854]
[1745565955282,1.8834749,1773.3,1772.7,5.64091177]
[1745565955570,1.8834749,1773.3,1772.8,4.939]
[1745565955773,1.57008876,1773.3,1772.8,4.939]
[1745565956071,1.57008876,1773.3,1772.8,5.99699118]
[1745565956476,1.57008876,1773.3,1772.8,4.939]
[1745565957788,0.8094,1773.3,1772.9,0.7659]
[1745565959373,0.76068876,1773.4,1772.9,0.7659]
[1745565960244,0.76068876,1773.2,1772.9,0.7659]
[1745565961486,0.76068876,1773.2,1772.6,0.8029]
[1745565961487,0.76068876,1773.0,1772.6,0.8029]
[1745565961644,0.76068876,1772.8,1772.4,21.83]
[1745565963145,1.57718876,1772.6,1772.4,21.83]
[1745565963341,1.57718876,1772.6,1772.4,4.899]
[1745565965146,1.54188876,1772.8,1772.4,4.899]
[1745565967654,0.76068876,1772.8,1772.4,4.899]
[1745565967855,0.76068876,1772.8,1772.4,5.3889]
[1745565968055,1.18892236,1772.9,1772.4,5.3889]
[1745565968267,1.18892236,1772.9,1772.5,0.817]
[1745565968268,0.7703,1772.9,1772.5,0.817]
[1745565968489,0.76068876,1773.0,1772.5,0.817]
[1745565969861,0.773,1773.1,1772.5,0.817]
[1745565970075,0.773,1773.1,1772.5,1.43759]
[1745565971482,0.773,1773.1,1772.5,7.07920592]
[1745565971661,0.773,1773.1,1772.5,1.43759]
[1745565971857,0.7662,1773.3,1772.6,6.40842386]
[1745565972069,0.7662,1773.3,1772.8,0.767]
[1745565972385,1.0740749,1773.4,1772.9,4.899]
[1745565972586,0.76068876,1773.4,1772.9,4.899]
[1745565977303,6.0,1773.3,1772.9,4.899]
[1745565977514,6.0,1773.3,1772.9,5.4656]
[1745565977800,6.0,1773.3,1773.0,0.7558]
[1745565978891,0.31455185,1773.2,1773.0,0.7558]
[1745565979910,6.0,1773.3,1773.0,0.7558]
[1745565982683,6.0,1773.5,1773.0,0.7558]
[1745565982889,6.0,1773.5,1773.0,1.88530601]
[1745565983112,0.31458204,1773.4,1773.0,1.88530601]
[1745565984683,0.31458204,1773.4,1773.1,0.7861]
[1745565985233,0.31458204,1773.4,1773.3,0.7861]
[1745565985386,6.0,1773.7,1773.3,5.6841]
[1745565985585,6.0,1773.7,1773.4,0.56841]
[1745565986329,6.0,1773.7,1773.3,5.6841]
[1745565986330,6.803,1773.7,1773.3,5.6841]
[1745565987044,6.0,1773.7,1773.3,5.6841]
[1745565988625,6.0,1773.8,1773.4,0.8124]
[1745565988835,6.0,1773.9,1773.4,1.94733879]
[1745565989918,6.0,1773.9,1773.5,0.8145]
[1745565990631,6.0,1774.0,1773.5,0.8145]
[1745565991829,6.43288669,1774.0,1773.5,0.8145]
[1745565992020,6.43288669,1774.0,1773.5,1.57332904]
[1745565992196,6.43288669,1774.0,1773.5,0.8145]
[1745565992400,6.0,1774.0,1773.5,0.8145]
[1745565995924,6.43336958,1774.0,1773.5,0.8145]
[1745565998138,6.0,1774.0,1773.6,0.7938]
[1745565998338,6.0,1774.0,1773.7,5.6578]
[1745565998553,6.0,1774.2,1773.8,0.56578]
[1745565999771,6.0,1774.2,1773.9,0.789]